{"text_format":"3","workbook":"xlsx","n_sheets":4,"sheets":["ภาพรวมงบประมาณ","สรุปงบประมาณ","ค่าใช้จ่ายรายเดือน","ข้อมูลเพิ่มเติม"],"not_rendered":{"charts":1,"images":4,"defined_names":7,"pivot_tables":2},"read":"whole","date_system":"1900"}

{"sheet":"ภาพรวมงบประมาณ","index":0,"n_rows":12,"n_cols":8,"rows_kept":12,"merged":[[2,1,2,2],[3,1,3,2],[4,1,4,2]]}
[{"$nulls":7}," "]
[null,"ยอดดุล"]
[null,"ยอดดุลที่คาดการณ์",null,{"$f":"Projected_Income-Projected_Expenses","v":{"v":1585,"d":"฿1,585"}},null,"ค่าใช้จ่ายที่คาดการณ์ไว้ลบค่าใช้จ่าย"]
[null,"ยอดดุลจริง ",null,{"$f":"Actual_Income-Actual_Expenses","v":{"v":1740,"d":"฿1,740"}},null,"ค่าใช้จ่ายตามจริงลบค่าใช้จ่าย"]
[null,"ผลต่าง",null,{"$f":"D4-D3","v":{"v":155,"d":"฿155"}},null,"ค่าใช้จ่ายตามจริงลบค่าใช้จ่ายที่คาดการณ์ไว้"]
[null,"รายได้",{"$nulls":3},"รายจ่าย"]
[null,null,"ค่าใช้จ่ายที่คาดการณ์ไว้","ค่าใช้จ่ายจริง",null,"ค่าใช้จ่ายที่คาดการณ์ไว้","ค่าใช้จ่ายจริง"]
[null,"รายได้ 1",{"v":6000,"d":"฿6,000"},{"v":5800,"d":"฿5,800"},null,{"$f":"SUM(Monthly_Expenses_Table[ต้นทุนที่คาดการณ์])","v":{"v":7915,"d":"฿7,915"}},{"$f":"SUM(Monthly_Expenses_Table[ค่าใช้จ่ายตามจริง])","v":{"v":7860,"d":"฿7,860"}}]
[null,"รายรับ 2",{"v":1000,"d":"฿1,000"},{"v":2300,"d":"฿2,300"}]
[null,"รายได้พิเศษ",{"v":2500,"d":"฿2,500"},{"v":1500,"d":"฿1,500"}]
[null,"รายได้ทั้งหมด",{"$f":"SUM(C8:C10)","v":{"v":9500,"d":"฿9,500"}},{"$f":"SUM(D8:D10)","v":{"v":9600,"d":"฿9,600"}}]
[null,"รายการแยกย่อยของค่าใช้จ่ายที่เกิดขึ้นจริง"]

{"sheet":"สรุปงบประมาณ","index":1,"n_rows":41,"n_cols":7,"rows_kept":41}
[null,"สรุปงบประมาณ",{"$nulls":4}," "]
[]
[null,"ประเภท","ต้นทุนที่คาดการณ์ ","ค่าใช้จ่ายตามจริง ","ผลรวม ของ ผลต่าง"]
[null,"ลูก",{"v":140,"d":"฿140"},{"v":140,"d":"฿140"},{"v":0,"d":"฿0"}]
[null,"การแพทย์",null,null,{"v":0,"d":"฿0"}]
[null,"กิจกรรมนอกหลักสูตร",{"v":40,"d":"฿40"},{"v":40,"d":"฿40"},{"v":0,"d":"฿0"}]
[null,"ค่าเล่าเรียน",{"v":100,"d":"฿100"},{"v":100,"d":"฿100"},{"v":0,"d":"฿0"}]
[null,"อุปกรณ์การเรียน",null,null,{"v":0,"d":"฿0"}]
[]
[null,"ความบันเทิง",{"v":400,"d":"฿400"},{"v":358,"d":"฿358"},{"v":42,"d":"฿42"}]
[null,"คอนเสิร์ต",{"v":50,"d":"฿50"},{"v":40,"d":"฿40"},{"v":10,"d":"฿10"}]
[null,"การแสดงสด",{"v":200,"d":"฿200"},{"v":150,"d":"฿150"},{"v":50,"d":"฿50"}]
[null,"ภาพยนตร์",{"v":50,"d":"฿50"},{"v":28,"d":"฿28"},{"v":22,"d":"฿22"}]
[null,"ดนตรี (CD, ดาวน์โหลด ฯลฯ)",{"v":50,"d":"฿50"},{"v":30,"d":"฿30"},{"v":20,"d":"฿20"}]
[null,"งานกีฬา",{"v":0,"d":"฿0"},{"v":40,"d":"฿40"},{"v":-40,"d":"-฿40"}]
[null,"วิดีโอ/DVD (ซื้อ)",{"v":20,"d":"฿20"},{"v":50,"d":"฿50"},{"v":-30,"d":"-฿30"}]
[null,"วิดีโอ/DVD (เช่า)",{"v":30,"d":"฿30"},{"v":20,"d":"฿20"},{"v":10,"d":"฿10"}]
[]
[null,"อาหาร",{"v":1100,"d":"฿1,100"},{"v":1320,"d":"฿1,320"},{"v":-220,"d":"-฿220"}]
[]
[null,"ของขวัญและการกุศล",{"v":100,"d":"฿100"},{"v":125,"d":"฿125"},{"v":-25,"d":"-฿25"}]
[]
[null,"ที่พัก",{"v":2830,"d":"฿2,830"},{"v":2702,"d":"฿2,702"},{"v":-72,"d":"-฿72"}]
[]
[null,"ประกัน",{"v":900,"d":"฿900"},{"v":900,"d":"฿900"},{"v":0,"d":"฿0"}]
[]
[null,"เงินกู้",{"v":200,"d":"฿200"},{"v":200,"d":"฿200"},{"v":0,"d":"฿0"}]
[]
[null,"ของใช้ส่วนตัว",{"v":150,"d":"฿150"},{"v":140,"d":"฿140"},{"v":10,"d":"฿10"}]
[]
[null,"สัตว์เลี้ยง",{"v":170,"d":"฿170"},{"v":100,"d":"฿100"},{"v":70,"d":"฿70"}]
[]
[null,"ภาษี",{"v":300,"d":"฿300"},{"v":300,"d":"฿300"},{"v":0,"d":"฿0"}]
[]
[null,"การเดินทาง",{"v":1425,"d":"฿1,425"},{"v":1375,"d":"฿1,375"},{"v":50,"d":"฿50"}]
[]
[null,"เงินออม",{"v":200,"d":"฿200"},{"v":200,"d":"฿200"},{"v":0,"d":"฿0"}]
[null,"บัญชีสำหรับลงทุน",{"v":200,"d":"฿200"},{"v":200,"d":"฿200"},{"v":0,"d":"฿0"}]
[null,"บัญชีเกษียณอายุ",null,null,{"v":0,"d":"฿0"}]
[]
[null,"Grand Total",{"v":7915,"d":"฿7,915"},{"v":7860,"d":"฿7,860"},{"v":-145,"d":"-฿145"}]

{"sheet":"ค่าใช้จ่ายรายเดือน","index":2,"n_rows":61,"n_cols":8,"rows_kept":61}
[{"$nulls":7}," "]
[null,"คำอธิบาย","ประเภท","ต้นทุนที่คาดการณ์","ค่าใช้จ่ายตามจริง","ผลต่าง","ภาพรวมค่าใช้จ่ายตามจริง"]
[null,"กิจกรรมนอกหลักสูตร","ลูก",{"v":40,"d":"฿40"},{"v":40,"d":"฿40"},{"$f":"IF(OR(Monthly_Expenses_Table[[#This Row],[ต้นทุนที่คาดการณ์]]=\"\",Monthly_Expenses_Table[[#This Row],[ค่าใช้จ่ายตามจริง]]=\"\"),\"\",Monthly_Expenses_Table[[#This Row],[ต้นทุนที่คาดการณ์]]-Monthly_Expenses_Table[[#This Row],[ค่าใช้จ่ายตามจริง]])","v":{"v":0,"d":"฿0"}},{"$f":"Monthly_Expenses_Table[[#This Row],[ค่าใช้จ่ายตามจริง]]","v":40}]
[null,"การแพทย์","ลูก",null,null,{"$f":"IF(OR(Monthly_Expenses_Table[[#This Row],[ต้นทุนที่คาดการณ์]]=\"\",Monthly_Expenses_Table[[#This Row],[ค่าใช้จ่ายตามจริง]]=\"\"),\"\",Monthly_Expenses_Table[[#This Row],[ต้นทุนที่คาดการณ์]]-Monthly_Expenses_Table[[#This Row],[ค่าใช้จ่ายตามจริง]])","v":""},{"$f":"Monthly_Expenses_Table[[#This Row],[ค่าใช้จ่ายตามจริง]]","v":0}]
[null,"อุปกรณ์การเรียน","ลูก",null,null,{"$f":"IF(OR(Monthly_Expenses_Table[[#This Row],[ต้นทุนที่คาดการณ์]]=\"\",Monthly_Expenses_Table[[#This Row],[ค่าใช้จ่ายตามจริง]]=\"\"),\"\",Monthly_Expenses_Table[[#This Row],[ต้นทุนที่คาดการณ์]]-Monthly_Expenses_Table[[#This Row],[ค่าใช้จ่ายตามจริง]])","v":""},{"$f":"Monthly_Expenses_Table[[#This Row],[ค่าใช้จ่ายตามจริง]]","v":0}]
[null,"ค่าเล่าเรียน","ลูก",{"v":100,"d":"฿100"},{"v":100,"d":"฿100"},{"$f":"IF(OR(Monthly_Expenses_Table[[#This Row],[ต้นทุนที่คาดการณ์]]=\"\",Monthly_Expenses_Table[[#This Row],[ค่าใช้จ่ายตามจริง]]=\"\"),\"\",Monthly_Expenses_Table[[#This Row],[ต้นทุนที่คาดการณ์]]-Monthly_Expenses_Table[[#This Row],[ค่าใช้จ่ายตามจริง]])","v":{"v":0,"d":"฿0"}},{"$f":"Monthly_Expenses_Table[[#This Row],[ค่าใช้จ่ายตามจริง]]","v":100}]
[null,"คอนเสิร์ต","ความบันเทิง",{"v":50,"d":"฿50"},{"v":40,"d":"฿40"},{"$f":"IF(OR(Monthly_Expenses_Table[[#This Row],[ต้นทุนที่คาดการณ์]]=\"\",Monthly_Expenses_Table[[#This Row],[ค่าใช้จ่ายตามจริง]]=\"\"),\"\",Monthly_Expenses_Table[[#This Row],[ต้นทุนที่คาดการณ์]]-Monthly_Expenses_Table[[#This Row],[ค่าใช้จ่ายตามจริง]])","v":{"v":10,"d":"฿10"}},{"$f":"Monthly_Expenses_Table[[#This Row],[ค่าใช้จ่ายตามจริง]]","v":40}]
[null,"การแสดงสด","ความบันเทิง",{"v":200,"d":"฿200"},{"v":150,"d":"฿150"},{"$f":"IF(OR(Monthly_Expenses_Table[[#This Row],[ต้นทุนที่คาดการณ์]]=\"\",Monthly_Expenses_Table[[#This Row],[ค่าใช้จ่ายตามจริง]]=\"\"),\"\",Monthly_Expenses_Table[[#This Row],[ต้นทุนที่คาดการณ์]]-Monthly_Expenses_Table[[#This Row],[ค่าใช้จ่ายตามจริง]])","v":{"v":50,"d":"฿50"}},{"$f":"Monthly_Expenses_Table[[#This Row],[ค่าใช้จ่ายตามจริง]]","v":150}]
[null,"ภาพยนตร์","ความบันเทิง",{"v":50,"d":"฿50"},{"v":28,"d":"฿28"},{"$f":"IF(OR(Monthly_Expenses_Table[[#This Row],[ต้นทุนที่คาดการณ์]]=\"\",Monthly_Expenses_Table[[#This Row],[ค่าใช้จ่ายตามจริง]]=\"\"),\"\",Monthly_Expenses_Table[[#This Row],[ต้นทุนที่คาดการณ์]]-Monthly_Expenses_Table[[#This Row],[ค่าใช้จ่ายตามจริง]])","v":{"v":22,"d":"฿22"}},{"$f":"Monthly_Expenses_Table[[#This Row],[ค่าใช้จ่ายตามจริง]]","v":28}]
[null,"ดนตรี (CD, ดาวน์โหลด ฯลฯ)","ความบันเทิง",{"v":50,"d":"฿50"},{"v":30,"d":"฿30"},{"$f":"IF(OR(Monthly_Expenses_Table[[#This Row],[ต้นทุนที่คาดการณ์]]=\"\",Monthly_Expenses_Table[[#This Row],[ค่าใช้จ่ายตามจริง]]=\"\"),\"\",Monthly_Expenses_Table[[#This Row],[ต้นทุนที่คาดการณ์]]-Monthly_Expenses_Table[[#This Row],[ค่าใช้จ่ายตามจริง]])","v":{"v":20,"d":"฿20"}},{"$f":"Monthly_Expenses_Table[[#This Row],[ค่าใช้จ่ายตามจริง]]","v":30}]
[null,"งานกีฬา","ความบันเทิง",{"v":0,"d":"฿0"},{"v":40,"d":"฿40"},{"$f":"IF(OR(Monthly_Expenses_Table[[#This Row],[ต้นทุนที่คาดการณ์]]=\"\",Monthly_Expenses_Table[[#This Row],[ค่าใช้จ่ายตามจริง]]=\"\"),\"\",Monthly_Expenses_Table[[#This Row],[ต้นทุนที่คาดการณ์]]-Monthly_Expenses_Table[[#This Row],[ค่าใช้จ่ายตามจริง]])","v":{"v":-40,"d":"-฿40"}},{"$f":"Monthly_Expenses_Table[[#This Row],[ค่าใช้จ่ายตามจริง]]","v":40}]
[null,"วิดีโอ/DVD (ซื้อ)","ความบันเทิง",{"v":20,"d":"฿20"},{"v":50,"d":"฿50"},{"$f":"IF(OR(Monthly_Expenses_Table[[#This Row],[ต้นทุนที่คาดการณ์]]=\"\",Monthly_Expenses_Table[[#This Row],[ค่าใช้จ่ายตามจริง]]=\"\"),\"\",Monthly_Expenses_Table[[#This Row],[ต้นทุนที่คาดการณ์]]-Monthly_Expenses_Table[[#This Row],[ค่าใช้จ่ายตามจริง]])","v":{"v":-30,"d":"-฿30"}},{"$f":"Monthly_Expenses_Table[[#This Row],[ค่าใช้จ่ายตามจริง]]","v":50}]
[null,"วิดีโอ/DVD (เช่า)","ความบันเทิง",{"v":30,"d":"฿30"},{"v":20,"d":"฿20"},{"$f":"IF(OR(Monthly_Expenses_Table[[#This Row],[ต้นทุนที่คาดการณ์]]=\"\",Monthly_Expenses_Table[[#This Row],[ค่าใช้จ่ายตามจริง]]=\"\"),\"\",Monthly_Expenses_Table[[#This Row],[ต้นทุนที่คาดการณ์]]-Monthly_Expenses_Table[[#This Row],[ค่าใช้จ่ายตามจริง]])","v":{"v":10,"d":"฿10"}},{"$f":"Monthly_Expenses_Table[[#This Row],[ค่าใช้จ่ายตามจริง]]","v":20}]
[null,"ทานอาหารนอกบ้าน","อาหาร",{"v":1000,"d":"฿1,000"},{"v":1200,"d":"฿1,200"},{"$f":"IF(OR(Monthly_Expenses_Table[[#This Row],[ต้นทุนที่คาดการณ์]]=\"\",Monthly_Expenses_Table[[#This Row],[ค่าใช้จ่ายตามจริง]]=\"\"),\"\",Monthly_Expenses_Table[[#This Row],[ต้นทุนที่คาดการณ์]]-Monthly_Expenses_Table[[#This Row],[ค่าใช้จ่ายตามจริง]])","v":{"v":-200,"d":"-฿200"}},{"$f":"Monthly_Expenses_Table[[#This Row],[ค่าใช้จ่ายตามจริง]]","v":1200}]
[null,"ของชำ","อาหาร",{"v":100,"d":"฿100"},{"v":120,"d":"฿120"},{"$f":"IF(OR(Monthly_Expenses_Table[[#This Row],[ต้นทุนที่คาดการณ์]]=\"\",Monthly_Expenses_Table[[#This Row],[ค่าใช้จ่ายตามจริง]]=\"\"),\"\",Monthly_Expenses_Table[[#This Row],[ต้นทุนที่คาดการณ์]]-Monthly_Expenses_Table[[#This Row],[ค่าใช้จ่ายตามจริง]])","v":{"v":-20,"d":"-฿20"}},{"$f":"Monthly_Expenses_Table[[#This Row],[ค่าใช้จ่ายตามจริง]]","v":120}]
[null,"การกุศล 1","ของขวัญและการกุศล",{"v":75,"d":"฿75"},{"v":100,"d":"฿100"},{"$f":"IF(OR(Monthly_Expenses_Table[[#This Row],[ต้นทุนที่คาดการณ์]]=\"\",Monthly_Expenses_Table[[#This Row],[ค่าใช้จ่ายตามจริง]]=\"\"),\"\",Monthly_Expenses_Table[[#This Row],[ต้นทุนที่คาดการณ์]]-Monthly_Expenses_Table[[#This Row],[ค่าใช้จ่ายตามจริง]])","v":{"v":-25,"d":"-฿25"}},{"$f":"Monthly_Expenses_Table[[#This Row],[ค่าใช้จ่ายตามจริง]]","v":100}]
[null,"การกุศล 2","ของขวัญและการกุศล",{"v":25,"d":"฿25"},{"v":25,"d":"฿25"},{"$f":"IF(OR(Monthly_Expenses_Table[[#This Row],[ต้นทุนที่คาดการณ์]]=\"\",Monthly_Expenses_Table[[#This Row],[ค่าใช้จ่ายตามจริง]]=\"\"),\"\",Monthly_Expenses_Table[[#This Row],[ต้นทุนที่คาดการณ์]]-Monthly_Expenses_Table[[#This Row],[ค่าใช้จ่ายตามจริง]])","v":{"v":0,"d":"฿0"}},{"$f":"Monthly_Expenses_Table[[#This Row],[ค่าใช้จ่ายตามจริง]]","v":25}]
[null,"ของขวัญ 1","ของขวัญและการกุศล",null,null,{"$f":"IF(OR(Monthly_Expenses_Table[[#This Row],[ต้นทุนที่คาดการณ์]]=\"\",Monthly_Expenses_Table[[#This Row],[ค่าใช้จ่ายตามจริง]]=\"\"),\"\",Monthly_Expenses_Table[[#This Row],[ต้นทุนที่คาดการณ์]]-Monthly_Expenses_Table[[#This Row],[ค่าใช้จ่ายตามจริง]])","v":""},{"$f":"Monthly_Expenses_Table[[#This Row],[ค่าใช้จ่ายตามจริง]]","v":0}]
[null,"ของขวัญ 2","ของขวัญและการกุศล",null,null,{"$f":"IF(OR(Monthly_Expenses_Table[[#This Row],[ต้นทุนที่คาดการณ์]]=\"\",Monthly_Expenses_Table[[#This Row],[ค่าใช้จ่ายตามจริง]]=\"\"),\"\",Monthly_Expenses_Table[[#This Row],[ต้นทุนที่คาดการณ์]]-Monthly_Expenses_Table[[#This Row],[ค่าใช้จ่ายตามจริง]])","v":""},{"$f":"Monthly_Expenses_Table[[#This Row],[ค่าใช้จ่ายตามจริง]]","v":0}]
[null,"เคเบิล/ดาวเทียม","ที่พัก",{"v":100,"d":"฿100"},{"v":100,"d":"฿100"},{"$f":"IF(OR(Monthly_Expenses_Table[[#This Row],[ต้นทุนที่คาดการณ์]]=\"\",Monthly_Expenses_Table[[#This Row],[ค่าใช้จ่ายตามจริง]]=\"\"),\"\",Monthly_Expenses_Table[[#This Row],[ต้นทุนที่คาดการณ์]]-Monthly_Expenses_Table[[#This Row],[ค่าใช้จ่ายตามจริง]])","v":{"v":0,"d":"฿0"}},{"$f":"Monthly_Expenses_Table[[#This Row],[ค่าใช้จ่ายตามจริง]]","v":100}]
[null,"ไฟฟ้า","ที่พัก",{"v":45,"d":"฿45"},{"v":50,"d":"฿50"},{"$f":"IF(OR(Monthly_Expenses_Table[[#This Row],[ต้นทุนที่คาดการณ์]]=\"\",Monthly_Expenses_Table[[#This Row],[ค่าใช้จ่ายตามจริง]]=\"\"),\"\",Monthly_Expenses_Table[[#This Row],[ต้นทุนที่คาดการณ์]]-Monthly_Expenses_Table[[#This Row],[ค่าใช้จ่ายตามจริง]])","v":{"v":-5,"d":"-฿5"}},{"$f":"Monthly_Expenses_Table[[#This Row],[ค่าใช้จ่ายตามจริง]]","v":50}]
[null,"แก๊ส","ที่พัก",{"v":300,"d":"฿300"},{"v":400,"d":"฿400"},{"$f":"IF(OR(Monthly_Expenses_Table[[#This Row],[ต้นทุนที่คาดการณ์]]=\"\",Monthly_Expenses_Table[[#This Row],[ค่าใช้จ่ายตามจริง]]=\"\"),\"\",Monthly_Expenses_Table[[#This Row],[ต้นทุนที่คาดการณ์]]-Monthly_Expenses_Table[[#This Row],[ค่าใช้จ่ายตามจริง]])","v":{"v":-100,"d":"-฿100"}},{"$f":"Monthly_Expenses_Table[[#This Row],[ค่าใช้จ่ายตามจริง]]","v":400}]
[null,"บริการทำความสะอาดบ้าน","ที่พัก",{"v":200,"d":"฿200"},null,{"$f":"IF(OR(Monthly_Expenses_Table[[#This Row],[ต้นทุนที่คาดการณ์]]=\"\",Monthly_Expenses_Table[[#This Row],[ค่าใช้จ่ายตามจริง]]=\"\"),\"\",Monthly_Expenses_Table[[#This Row],[ต้นทุนที่คาดการณ์]]-Monthly_Expenses_Table[[#This Row],[ค่าใช้จ่ายตามจริง]])","v":""},{"$f":"Monthly_Expenses_Table[[#This Row],[ค่าใช้จ่ายตามจริง]]","v":0}]
[null,"การบำรุงรักษา","ที่พัก",{"v":200,"d":"฿200"},{"v":150,"d":"฿150"},{"$f":"IF(OR(Monthly_Expenses_Table[[#This Row],[ต้นทุนที่คาดการณ์]]=\"\",Monthly_Expenses_Table[[#This Row],[ค่าใช้จ่ายตามจริง]]=\"\"),\"\",Monthly_Expenses_Table[[#This Row],[ต้นทุนที่คาดการณ์]]-Monthly_Expenses_Table[[#This Row],[ค่าใช้จ่ายตามจริง]])","v":{"v":50,"d":"฿50"}},{"$f":"Monthly_Expenses_Table[[#This Row],[ค่าใช้จ่ายตามจริง]]","v":150}]
[null,"จำนองหรือเช่า","ที่พัก",{"v":1700,"d":"฿1,700"},{"v":1700,"d":"฿1,700"},{"$f":"IF(OR(Monthly_Expenses_Table[[#This Row],[ต้นทุนที่คาดการณ์]]=\"\",Monthly_Expenses_Table[[#This Row],[ค่าใช้จ่ายตามจริง]]=\"\"),\"\",Monthly_Expenses_Table[[#This Row],[ต้นทุนที่คาดการณ์]]-Monthly_Expenses_Table[[#This Row],[ค่าใช้จ่ายตามจริง]])","v":{"v":0,"d":"฿0"}},{"$f":"Monthly_Expenses_Table[[#This Row],[ค่าใช้จ่ายตามจริง]]","v":1700}]
[null,"แก๊สธรรมชาติ/น้ำมัน","ที่พัก",null,null,{"$f":"IF(OR(Monthly_Expenses_Table[[#This Row],[ต้นทุนที่คาดการณ์]]=\"\",Monthly_Expenses_Table[[#This Row],[ค่าใช้จ่ายตามจริง]]=\"\"),\"\",Monthly_Expenses_Table[[#This Row],[ต้นทุนที่คาดการณ์]]-Monthly_Expenses_Table[[#This Row],[ค่าใช้จ่ายตามจริง]])","v":""},{"$f":"Monthly_Expenses_Table[[#This Row],[ค่าใช้จ่ายตามจริง]]","v":0}]
[null,"บริการออนไลน์/อินเทอร์เน็ต","ที่พัก",{"v":100,"d":"฿100"},{"v":100,"d":"฿100"},{"$f":"IF(OR(Monthly_Expenses_Table[[#This Row],[ต้นทุนที่คาดการณ์]]=\"\",Monthly_Expenses_Table[[#This Row],[ค่าใช้จ่ายตามจริง]]=\"\"),\"\",Monthly_Expenses_Table[[#This Row],[ต้นทุนที่คาดการณ์]]-Monthly_Expenses_Table[[#This Row],[ค่าใช้จ่ายตามจริง]])","v":{"v":0,"d":"฿0"}},{"$f":"Monthly_Expenses_Table[[#This Row],[ค่าใช้จ่ายตามจริง]]","v":100}]
[null,"โทรศัพท์ (มือถือ)","ที่พัก",{"v":60,"d":"฿60"},{"v":60,"d":"฿60"},{"$f":"IF(OR(Monthly_Expenses_Table[[#This Row],[ต้นทุนที่คาดการณ์]]=\"\",Monthly_Expenses_Table[[#This Row],[ค่าใช้จ่ายตามจริง]]=\"\"),\"\",Monthly_Expenses_Table[[#This Row],[ต้นทุนที่คาดการณ์]]-Monthly_Expenses_Table[[#This Row],[ค่าใช้จ่ายตามจริง]])","v":{"v":0,"d":"฿0"}},{"$f":"Monthly_Expenses_Table[[#This Row],[ค่าใช้จ่ายตามจริง]]","v":60}]
[null,"โทรศัพท์ (บ้าน)","ที่พัก",{"v":35,"d":"฿35"},{"v":39,"d":"฿39"},{"$f":"IF(OR(Monthly_Expenses_Table[[#This Row],[ต้นทุนที่คาดการณ์]]=\"\",Monthly_Expenses_Table[[#This Row],[ค่าใช้จ่ายตามจริง]]=\"\"),\"\",Monthly_Expenses_Table[[#This Row],[ต้นทุนที่คาดการณ์]]-Monthly_Expenses_Table[[#This Row],[ค่าใช้จ่ายตามจริง]])","v":{"v":-4,"d":"-฿4"}},{"$f":"Monthly_Expenses_Table[[#This Row],[ค่าใช้จ่ายตามจริง]]","v":39}]
[null,"วัสดุ","ที่พัก",{"v":40,"d":"฿40"},{"v":55,"d":"฿55"},{"$f":"IF(OR(Monthly_Expenses_Table[[#This Row],[ต้นทุนที่คาดการณ์]]=\"\",Monthly_Expenses_Table[[#This Row],[ค่าใช้จ่ายตามจริง]]=\"\"),\"\",Monthly_Expenses_Table[[#This Row],[ต้นทุนที่คาดการณ์]]-Monthly_Expenses_Table[[#This Row],[ค่าใช้จ่ายตามจริง]])","v":{"v":-15,"d":"-฿15"}},{"$f":"Monthly_Expenses_Table[[#This Row],[ค่าใช้จ่ายตามจริง]]","v":55}]
[null,"บริการกำจัดขยะและรีไซเคิล","ที่พัก",{"v":25,"d":"฿25"},{"v":22,"d":"฿22"},{"$f":"IF(OR(Monthly_Expenses_Table[[#This Row],[ต้นทุนที่คาดการณ์]]=\"\",Monthly_Expenses_Table[[#This Row],[ค่าใช้จ่ายตามจริง]]=\"\"),\"\",Monthly_Expenses_Table[[#This Row],[ต้นทุนที่คาดการณ์]]-Monthly_Expenses_Table[[#This Row],[ค่าใช้จ่ายตามจริง]])","v":{"v":3,"d":"฿3"}},{"$f":"Monthly_Expenses_Table[[#This Row],[ค่าใช้จ่ายตามจริง]]","v":22}]
[null,"น้ำและท่อระบายน้ำ","ที่พัก",{"v":25,"d":"฿25"},{"v":26,"d":"฿26"},{"$f":"IF(OR(Monthly_Expenses_Table[[#This Row],[ต้นทุนที่คาดการณ์]]=\"\",Monthly_Expenses_Table[[#This Row],[ค่าใช้จ่ายตามจริง]]=\"\"),\"\",Monthly_Expenses_Table[[#This Row],[ต้นทุนที่คาดการณ์]]-Monthly_Expenses_Table[[#This Row],[ค่าใช้จ่ายตามจริง]])","v":{"v":-1,"d":"-฿1"}},{"$f":"Monthly_Expenses_Table[[#This Row],[ค่าใช้จ่ายตามจริง]]","v":26}]
[null,"สุขภาพ","ประกัน",{"v":400,"d":"฿400"},{"v":400,"d":"฿400"},{"$f":"IF(OR(Monthly_Expenses_Table[[#This Row],[ต้นทุนที่คาดการณ์]]=\"\",Monthly_Expenses_Table[[#This Row],[ค่าใช้จ่ายตามจริง]]=\"\"),\"\",Monthly_Expenses_Table[[#This Row],[ต้นทุนที่คาดการณ์]]-Monthly_Expenses_Table[[#This Row],[ค่าใช้จ่ายตามจริง]])","v":{"v":0,"d":"฿0"}},{"$f":"Monthly_Expenses_Table[[#This Row],[ค่าใช้จ่ายตามจริง]]","v":400}]
[null,"บ้าน","ประกัน",{"v":400,"d":"฿400"},{"v":400,"d":"฿400"},{"$f":"IF(OR(Monthly_Expenses_Table[[#This Row],[ต้นทุนที่คาดการณ์]]=\"\",Monthly_Expenses_Table[[#This Row],[ค่าใช้จ่ายตามจริง]]=\"\"),\"\",Monthly_Expenses_Table[[#This Row],[ต้นทุนที่คาดการณ์]]-Monthly_Expenses_Table[[#This Row],[ค่าใช้จ่ายตามจริง]])","v":{"v":0,"d":"฿0"}},{"$f":"Monthly_Expenses_Table[[#This Row],[ค่าใช้จ่ายตามจริง]]","v":400}]
[null,"ชีวิต","ประกัน",{"v":100,"d":"฿100"},{"v":100,"d":"฿100"},{"$f":"IF(OR(Monthly_Expenses_Table[[#This Row],[ต้นทุนที่คาดการณ์]]=\"\",Monthly_Expenses_Table[[#This Row],[ค่าใช้จ่ายตามจริง]]=\"\"),\"\",Monthly_Expenses_Table[[#This Row],[ต้นทุนที่คาดการณ์]]-Monthly_Expenses_Table[[#This Row],[ค่าใช้จ่ายตามจริง]])","v":{"v":0,"d":"฿0"}},{"$f":"Monthly_Expenses_Table[[#This Row],[ค่าใช้จ่ายตามจริง]]","v":100}]
[null,"บัตรเครดิต 1","เงินกู้",{"v":200,"d":"฿200"},{"v":200,"d":"฿200"},{"$f":"IF(OR(Monthly_Expenses_Table[[#This Row],[ต้นทุนที่คาดการณ์]]=\"\",Monthly_Expenses_Table[[#This Row],[ค่าใช้จ่ายตามจริง]]=\"\"),\"\",Monthly_Expenses_Table[[#This Row],[ต้นทุนที่คาดการณ์]]-Monthly_Expenses_Table[[#This Row],[ค่าใช้จ่ายตามจริง]])","v":{"v":0,"d":"฿0"}},{"$f":"Monthly_Expenses_Table[[#This Row],[ค่าใช้จ่ายตามจริง]]","v":200}]
[null,"บัตรเครดิต 2","เงินกู้",null,null,{"$f":"IF(OR(Monthly_Expenses_Table[[#This Row],[ต้นทุนที่คาดการณ์]]=\"\",Monthly_Expenses_Table[[#This Row],[ค่าใช้จ่ายตามจริง]]=\"\"),\"\",Monthly_Expenses_Table[[#This Row],[ต้นทุนที่คาดการณ์]]-Monthly_Expenses_Table[[#This Row],[ค่าใช้จ่ายตามจริง]])","v":""},{"$f":"Monthly_Expenses_Table[[#This Row],[ค่าใช้จ่ายตามจริง]]","v":0}]
[null,"บัตรเครดิต 3","เงินกู้",null,null,{"$f":"IF(OR(Monthly_Expenses_Table[[#This Row],[ต้นทุนที่คาดการณ์]]=\"\",Monthly_Expenses_Table[[#This Row],[ค่าใช้จ่ายตามจริง]]=\"\"),\"\",Monthly_Expenses_Table[[#This Row],[ต้นทุนที่คาดการณ์]]-Monthly_Expenses_Table[[#This Row],[ค่าใช้จ่ายตามจริง]])","v":""},{"$f":"Monthly_Expenses_Table[[#This Row],[ค่าใช้จ่ายตามจริง]]","v":0}]
[null,"ส่วนบุคคล","เงินกู้",null,null,{"$f":"IF(OR(Monthly_Expenses_Table[[#This Row],[ต้นทุนที่คาดการณ์]]=\"\",Monthly_Expenses_Table[[#This Row],[ค่าใช้จ่ายตามจริง]]=\"\"),\"\",Monthly_Expenses_Table[[#This Row],[ต้นทุนที่คาดการณ์]]-Monthly_Expenses_Table[[#This Row],[ค่าใช้จ่ายตามจริง]])","v":""},{"$f":"Monthly_Expenses_Table[[#This Row],[ค่าใช้จ่ายตามจริง]]","v":0}]
[null,"การศึกษา","เงินกู้",null,null,{"$f":"IF(OR(Monthly_Expenses_Table[[#This Row],[ต้นทุนที่คาดการณ์]]=\"\",Monthly_Expenses_Table[[#This Row],[ค่าใช้จ่ายตามจริง]]=\"\"),\"\",Monthly_Expenses_Table[[#This Row],[ต้นทุนที่คาดการณ์]]-Monthly_Expenses_Table[[#This Row],[ค่าใช้จ่ายตามจริง]])","v":""},{"$f":"Monthly_Expenses_Table[[#This Row],[ค่าใช้จ่ายตามจริง]]","v":0}]
[null,"เสื้อผ้า","ของใช้ส่วนตัว",{"v":150,"d":"฿150"},{"v":140,"d":"฿140"},{"$f":"IF(OR(Monthly_Expenses_Table[[#This Row],[ต้นทุนที่คาดการณ์]]=\"\",Monthly_Expenses_Table[[#This Row],[ค่าใช้จ่ายตามจริง]]=\"\"),\"\",Monthly_Expenses_Table[[#This Row],[ต้นทุนที่คาดการณ์]]-Monthly_Expenses_Table[[#This Row],[ค่าใช้จ่ายตามจริง]])","v":{"v":10,"d":"฿10"}},{"$f":"Monthly_Expenses_Table[[#This Row],[ค่าใช้จ่ายตามจริง]]","v":140}]
[null,"ซักแห้ง","ของใช้ส่วนตัว",null,null,{"$f":"IF(OR(Monthly_Expenses_Table[[#This Row],[ต้นทุนที่คาดการณ์]]=\"\",Monthly_Expenses_Table[[#This Row],[ค่าใช้จ่ายตามจริง]]=\"\"),\"\",Monthly_Expenses_Table[[#This Row],[ต้นทุนที่คาดการณ์]]-Monthly_Expenses_Table[[#This Row],[ค่าใช้จ่ายตามจริง]])","v":""},{"$f":"Monthly_Expenses_Table[[#This Row],[ค่าใช้จ่ายตามจริง]]","v":0}]
[null,"ผม/เล็บ","ของใช้ส่วนตัว",null,null,{"$f":"IF(OR(Monthly_Expenses_Table[[#This Row],[ต้นทุนที่คาดการณ์]]=\"\",Monthly_Expenses_Table[[#This Row],[ค่าใช้จ่ายตามจริง]]=\"\"),\"\",Monthly_Expenses_Table[[#This Row],[ต้นทุนที่คาดการณ์]]-Monthly_Expenses_Table[[#This Row],[ค่าใช้จ่ายตามจริง]])","v":""},{"$f":"Monthly_Expenses_Table[[#This Row],[ค่าใช้จ่ายตามจริง]]","v":0}]
[null,"ฟิตเนส","ของใช้ส่วนตัว",null,null,{"$f":"IF(OR(Monthly_Expenses_Table[[#This Row],[ต้นทุนที่คาดการณ์]]=\"\",Monthly_Expenses_Table[[#This Row],[ค่าใช้จ่ายตามจริง]]=\"\"),\"\",Monthly_Expenses_Table[[#This Row],[ต้นทุนที่คาดการณ์]]-Monthly_Expenses_Table[[#This Row],[ค่าใช้จ่ายตามจริง]])","v":""},{"$f":"Monthly_Expenses_Table[[#This Row],[ค่าใช้จ่ายตามจริง]]","v":0}]
[null,"การแพทย์","ของใช้ส่วนตัว",null,null,{"$f":"IF(OR(Monthly_Expenses_Table[[#This Row],[ต้นทุนที่คาดการณ์]]=\"\",Monthly_Expenses_Table[[#This Row],[ค่าใช้จ่ายตามจริง]]=\"\"),\"\",Monthly_Expenses_Table[[#This Row],[ต้นทุนที่คาดการณ์]]-Monthly_Expenses_Table[[#This Row],[ค่าใช้จ่ายตามจริง]])","v":""},{"$f":"Monthly_Expenses_Table[[#This Row],[ค่าใช้จ่ายตามจริง]]","v":0}]
[null,"อาหาร","สัตว์เลี้ยง",{"v":150,"d":"฿150"},{"v":75,"d":"฿75"},{"$f":"IF(OR(Monthly_Expenses_Table[[#This Row],[ต้นทุนที่คาดการณ์]]=\"\",Monthly_Expenses_Table[[#This Row],[ค่าใช้จ่ายตามจริง]]=\"\"),\"\",Monthly_Expenses_Table[[#This Row],[ต้นทุนที่คาดการณ์]]-Monthly_Expenses_Table[[#This Row],[ค่าใช้จ่ายตามจริง]])","v":{"v":75,"d":"฿75"}},{"$f":"Monthly_Expenses_Table[[#This Row],[ค่าใช้จ่ายตามจริง]]","v":75}]
[null,"เสริมสวย","สัตว์เลี้ยง",{"v":20,"d":"฿20"},{"v":25,"d":"฿25"},{"$f":"IF(OR(Monthly_Expenses_Table[[#This Row],[ต้นทุนที่คาดการณ์]]=\"\",Monthly_Expenses_Table[[#This Row],[ค่าใช้จ่ายตามจริง]]=\"\"),\"\",Monthly_Expenses_Table[[#This Row],[ต้นทุนที่คาดการณ์]]-Monthly_Expenses_Table[[#This Row],[ค่าใช้จ่ายตามจริง]])","v":{"v":-5,"d":"-฿5"}},{"$f":"Monthly_Expenses_Table[[#This Row],[ค่าใช้จ่ายตามจริง]]","v":25}]
[null,"การแพทย์","สัตว์เลี้ยง",null,null,{"$f":"IF(OR(Monthly_Expenses_Table[[#This Row],[ต้นทุนที่คาดการณ์]]=\"\",Monthly_Expenses_Table[[#This Row],[ค่าใช้จ่ายตามจริง]]=\"\"),\"\",Monthly_Expenses_Table[[#This Row],[ต้นทุนที่คาดการณ์]]-Monthly_Expenses_Table[[#This Row],[ค่าใช้จ่ายตามจริง]])","v":""},{"$f":"Monthly_Expenses_Table[[#This Row],[ค่าใช้จ่ายตามจริง]]","v":0}]
[null,"ของเล่น","สัตว์เลี้ยง",null,null,{"$f":"IF(OR(Monthly_Expenses_Table[[#This Row],[ต้นทุนที่คาดการณ์]]=\"\",Monthly_Expenses_Table[[#This Row],[ค่าใช้จ่ายตามจริง]]=\"\"),\"\",Monthly_Expenses_Table[[#This Row],[ต้นทุนที่คาดการณ์]]-Monthly_Expenses_Table[[#This Row],[ค่าใช้จ่ายตามจริง]])","v":""},{"$f":"Monthly_Expenses_Table[[#This Row],[ค่าใช้จ่ายตามจริง]]","v":0}]
[null,"บัญชีสำหรับลงทุน","เงินออม",{"v":200,"d":"฿200"},{"v":200,"d":"฿200"},{"$f":"IF(OR(Monthly_Expenses_Table[[#This Row],[ต้นทุนที่คาดการณ์]]=\"\",Monthly_Expenses_Table[[#This Row],[ค่าใช้จ่ายตามจริง]]=\"\"),\"\",Monthly_Expenses_Table[[#This Row],[ต้นทุนที่คาดการณ์]]-Monthly_Expenses_Table[[#This Row],[ค่าใช้จ่ายตามจริง]])","v":{"v":0,"d":"฿0"}},{"$f":"Monthly_Expenses_Table[[#This Row],[ค่าใช้จ่ายตามจริง]]","v":200}]
[null,"บัญชีเกษียณอายุ","เงินออม",null,null,{"$f":"IF(OR(Monthly_Expenses_Table[[#This Row],[ต้นทุนที่คาดการณ์]]=\"\",Monthly_Expenses_Table[[#This Row],[ค่าใช้จ่ายตามจริง]]=\"\"),\"\",Monthly_Expenses_Table[[#This Row],[ต้นทุนที่คาดการณ์]]-Monthly_Expenses_Table[[#This Row],[ค่าใช้จ่ายตามจริง]])","v":""},{"$f":"Monthly_Expenses_Table[[#This Row],[ค่าใช้จ่ายตามจริง]]","v":0}]
[null,"สหพันธรัฐ","ภาษี",{"v":300,"d":"฿300"},{"v":300,"d":"฿300"},{"$f":"IF(OR(Monthly_Expenses_Table[[#This Row],[ต้นทุนที่คาดการณ์]]=\"\",Monthly_Expenses_Table[[#This Row],[ค่าใช้จ่ายตามจริง]]=\"\"),\"\",Monthly_Expenses_Table[[#This Row],[ต้นทุนที่คาดการณ์]]-Monthly_Expenses_Table[[#This Row],[ค่าใช้จ่ายตามจริง]])","v":{"v":0,"d":"฿0"}},{"$f":"Monthly_Expenses_Table[[#This Row],[ค่าใช้จ่ายตามจริง]]","v":300}]
[null,"ท้องถิ่น","ภาษี",null,null,{"$f":"IF(OR(Monthly_Expenses_Table[[#This Row],[ต้นทุนที่คาดการณ์]]=\"\",Monthly_Expenses_Table[[#This Row],[ค่าใช้จ่ายตามจริง]]=\"\"),\"\",Monthly_Expenses_Table[[#This Row],[ต้นทุนที่คาดการณ์]]-Monthly_Expenses_Table[[#This Row],[ค่าใช้จ่ายตามจริง]])","v":""},{"$f":"Monthly_Expenses_Table[[#This Row],[ค่าใช้จ่ายตามจริง]]","v":0}]
[null,"รัฐ","ภาษี",null,null,{"$f":"IF(OR(Monthly_Expenses_Table[[#This Row],[ต้นทุนที่คาดการณ์]]=\"\",Monthly_Expenses_Table[[#This Row],[ค่าใช้จ่ายตามจริง]]=\"\"),\"\",Monthly_Expenses_Table[[#This Row],[ต้นทุนที่คาดการณ์]]-Monthly_Expenses_Table[[#This Row],[ค่าใช้จ่ายตามจริง]])","v":""},{"$f":"Monthly_Expenses_Table[[#This Row],[ค่าใช้จ่ายตามจริง]]","v":0}]
[null,"ค่าโดยสารรถเมล์/แท็กซี่","การเดินทาง",{"v":100,"d":"฿100"},{"v":150,"d":"฿150"},{"$f":"IF(OR(Monthly_Expenses_Table[[#This Row],[ต้นทุนที่คาดการณ์]]=\"\",Monthly_Expenses_Table[[#This Row],[ค่าใช้จ่ายตามจริง]]=\"\"),\"\",Monthly_Expenses_Table[[#This Row],[ต้นทุนที่คาดการณ์]]-Monthly_Expenses_Table[[#This Row],[ค่าใช้จ่ายตามจริง]])","v":{"v":-50,"d":"-฿50"}},{"$f":"Monthly_Expenses_Table[[#This Row],[ค่าใช้จ่ายตามจริง]]","v":150}]
[null,"น้ำมัน","การเดินทาง",{"v":450,"d":"฿450"},{"v":400,"d":"฿400"},{"$f":"IF(OR(Monthly_Expenses_Table[[#This Row],[ต้นทุนที่คาดการณ์]]=\"\",Monthly_Expenses_Table[[#This Row],[ค่าใช้จ่ายตามจริง]]=\"\"),\"\",Monthly_Expenses_Table[[#This Row],[ต้นทุนที่คาดการณ์]]-Monthly_Expenses_Table[[#This Row],[ค่าใช้จ่ายตามจริง]])","v":{"v":50,"d":"฿50"}},{"$f":"Monthly_Expenses_Table[[#This Row],[ค่าใช้จ่ายตามจริง]]","v":400}]
[null,"ประกัน","การเดินทาง",{"v":300,"d":"฿300"},{"v":300,"d":"฿300"},{"$f":"IF(OR(Monthly_Expenses_Table[[#This Row],[ต้นทุนที่คาดการณ์]]=\"\",Monthly_Expenses_Table[[#This Row],[ค่าใช้จ่ายตามจริง]]=\"\"),\"\",Monthly_Expenses_Table[[#This Row],[ต้นทุนที่คาดการณ์]]-Monthly_Expenses_Table[[#This Row],[ค่าใช้จ่ายตามจริง]])","v":{"v":0,"d":"฿0"}},{"$f":"Monthly_Expenses_Table[[#This Row],[ค่าใช้จ่ายตามจริง]]","v":300}]
[null,"ทะเบียนรถ ","การเดินทาง",{"v":25,"d":"฿25"},{"v":25,"d":"฿25"},{"$f":"IF(OR(Monthly_Expenses_Table[[#This Row],[ต้นทุนที่คาดการณ์]]=\"\",Monthly_Expenses_Table[[#This Row],[ค่าใช้จ่ายตามจริง]]=\"\"),\"\",Monthly_Expenses_Table[[#This Row],[ต้นทุนที่คาดการณ์]]-Monthly_Expenses_Table[[#This Row],[ค่าใช้จ่ายตามจริง]])","v":{"v":0,"d":"฿0"}},{"$f":"Monthly_Expenses_Table[[#This Row],[ค่าใช้จ่ายตามจริง]]","v":25}]
[null,"การบำรุงรักษา","การเดินทาง",{"v":100,"d":"฿100"},{"v":50,"d":"฿50"},{"$f":"IF(OR(Monthly_Expenses_Table[[#This Row],[ต้นทุนที่คาดการณ์]]=\"\",Monthly_Expenses_Table[[#This Row],[ค่าใช้จ่ายตามจริง]]=\"\"),\"\",Monthly_Expenses_Table[[#This Row],[ต้นทุนที่คาดการณ์]]-Monthly_Expenses_Table[[#This Row],[ค่าใช้จ่ายตามจริง]])","v":{"v":50,"d":"฿50"}},{"$f":"Monthly_Expenses_Table[[#This Row],[ค่าใช้จ่ายตามจริง]]","v":50}]
[null,"ค่าจอดรถ","การเดินทาง",null,null,{"$f":"IF(OR(Monthly_Expenses_Table[[#This Row],[ต้นทุนที่คาดการณ์]]=\"\",Monthly_Expenses_Table[[#This Row],[ค่าใช้จ่ายตามจริง]]=\"\"),\"\",Monthly_Expenses_Table[[#This Row],[ต้นทุนที่คาดการณ์]]-Monthly_Expenses_Table[[#This Row],[ค่าใช้จ่ายตามจริง]])","v":""},{"$f":"Monthly_Expenses_Table[[#This Row],[ค่าใช้จ่ายตามจริง]]","v":0}]
[null,"ค่าใช้จ่ายยานพาหนะ","การเดินทาง",{"v":450,"d":"฿450"},{"v":450,"d":"฿450"},{"$f":"IF(OR(Monthly_Expenses_Table[[#This Row],[ต้นทุนที่คาดการณ์]]=\"\",Monthly_Expenses_Table[[#This Row],[ค่าใช้จ่ายตามจริง]]=\"\"),\"\",Monthly_Expenses_Table[[#This Row],[ต้นทุนที่คาดการณ์]]-Monthly_Expenses_Table[[#This Row],[ค่าใช้จ่ายตามจริง]])","v":{"v":0,"d":"฿0"}},{"$f":"Monthly_Expenses_Table[[#This Row],[ค่าใช้จ่ายตามจริง]]","v":450}]

{"sheet":"ข้อมูลเพิ่มเติม","index":3,"n_rows":17,"n_cols":6,"rows_kept":17}
[{"$nulls":5}," "]
[null,"PivotTable สำหรับแผนภูมิงบประมาณ",null,null,"รายการประเภท"]
[]
[null,"ประเภท","ค่าใช้จ่ายตามจริง ",null,"เมื่อต้องการเพิ่มประเภท ให้พิมพ์ด้านล่าง"]
[null,"สัตว์เลี้ยง",{"v":100,"d":"฿100"},null,"ลูก"]
[null,"ของขวัญและการกุศล",{"v":125,"d":"฿125"},null,"ความบันเทิง"]
[null,"ของใช้ส่วนตัว",{"v":140,"d":"฿140"},null,"อาหาร"]
[null,"ลูก",{"v":140,"d":"฿140"},null,"ของขวัญและการกุศล"]
[null,"เงินออม",{"v":200,"d":"฿200"},null,"ที่พัก"]
[null,"เงินกู้",{"v":200,"d":"฿200"},null,"ประกัน"]
[null,"ภาษี",{"v":300,"d":"฿300"},null,"เงินกู้"]
[null,"ความบันเทิง",{"v":358,"d":"฿358"},null,"ของใช้ส่วนตัว"]
[null,"ประกัน",{"v":900,"d":"฿900"},null,"สัตว์เลี้ยง"]
[null,"อาหาร",{"v":1320,"d":"฿1,320"},null,"เงินออม"]
[null,"การเดินทาง",{"v":1375,"d":"฿1,375"},null,"ภาษี"]
[null,"ที่พัก",{"v":2702,"d":"฿2,702"},null,"การเดินทาง"]
[null,"Grand Total",{"v":7860,"d":"฿7,860"}]